bitfinex/quotes_BTCUSD_20251104
["timestamp","ask_amount","ask_price","bid_price","bid_amount"]
[1762299037183,3.37700333,101270.0,101260.0,0.00048387]
[1762299037582,3.38200333,101270.0,101260.0,0.00048387]
[1762299039733,0.63574798,101270.0,101260.0,0.00048387]
[1762299040084,1.20633888,101270.0,101260.0,0.00048387]
[1762299040291,3.25169582,101270.0,101260.0,0.00048387]
[1762299042539,2.67192879,101270.0,101260.0,0.00048387]
[1762299042733,3.25169582,101270.0,101260.0,0.00048387]
[1762299044434,3.24252116,101270.0,101260.0,0.00048387]
[1762299046990,3.34207813,101270.0,101260.0,0.00048387]
[1762299047212,0.19757851,101230.0,101220.0,0.1975894]
[1762299047427,0.2238094,101220.0,101210.0,0.1975905]
[1762299047640,0.2238094,101220.0,101210.0,0.00048414]
[1762299047641,0.2484894,101220.0,101210.0,0.00048414]
[1762299047857,0.82825643,101220.0,101210.0,0.00048414]
[1762299048106,0.82825643,101220.0,101210.0,0.19809307]
[1762299048304,0.82825643,101220.0,101210.0,0.00048414]
[1762299048629,0.2484894,101220.0,101210.0,0.00048414]
[1762299048980,0.2484894,101220.0,101210.0,0.19809307]
[1762299049193,0.2484894,101220.0,101210.0,0.00048414]
[1762299049663,0.27506335,101220.0,101210.0,0.00348414]
[1762299049957,0.27506335,101220.0,101210.0,0.00048414]
[1762299050406,0.99862735,101220.0,101210.0,0.00148414]
[1762299050578,0.2927294,101220.0,101210.0,0.00148414]
[1762299050781,0.87249643,101220.0,101210.0,0.00148414]
[1762299051280,0.2927294,101220.0,101210.0,0.00148414]
[1762299051500,0.2927294,101220.0,101210.0,0.19909307]
[1762299051784,0.2927294,101220.0,101210.0,0.00148414]
[1762299052168,0.2927294,101220.0,101210.0,0.19909307]
[1762299052378,0.2927294,101220.0,101210.0,0.00148414]
[1762299052811,0.2927294,101220.0,101210.0,0.00048414]
[1762299053199,0.39228637,101220.0,101210.0,0.00148414]
[1762299053609,0.9720534,101220.0,101210.0,0.00148414]
[1762299054950,1.00146068,101220.0,101210.0,0.00148414]
[1762299055095,0.90190371,101220.0,101210.0,0.00148414]
[1762299055295,0.32213668,101220.0,101210.0,0.00148414]
[1762299055499,0.2927294,101220.0,101210.0,0.19909307]
[1762299056279,0.2927294,101220.0,101210.0,0.00148414]
[1762299056627,1.36344921,101220.0,101210.0,0.00148414]
[1762299056886,1.46300618,101220.0,101210.0,0.00148414]
[1762299057456,1.46300618,101220.0,101210.0,0.00048414]
[1762299057908,1.37764296,101220.0,101210.0,0.00048414]
[1762299060022,3.37764296,101220.0,101210.0,0.00048414]
[1762299060199,3.38681354,101220.0,101210.0,0.00048414]
[1762299060398,0.19762845,101200.0,101190.0,0.00264704]
[1762299060606,0.91742773,101200.0,101190.0,0.00313166]
[1762299060817,0.29362845,101200.0,101190.0,0.00313166]
[1762299061217,0.32281519,101200.0,101190.0,0.00313166]
[1762299061585,1.21339548,101200.0,101190.0,0.00313166]
[1762299062031,1.24258222,101200.0,101190.0,0.00313166]
[1762299062347,1.31295245,101200.0,101190.0,0.00313166]
[1762299062543,1.34913473,101200.0,101190.0,0.00313166]
[1762299063060,1.37832147,101200.0,101190.0,0.00313166]
[1762299063778,1.34913473,101200.0,101190.0,0.00313166]
[1762299064107,1.37832147,101200.0,101190.0,0.00313166]
[1762299064965,1.37482147,101200.0,101190.0,0.00313166]
[1762299065165,3.96375781,101200.0,101190.0,1.66e-06]
[1762299065366,0.19770451,101170.0,101150.0,0.20760274]
[1762299065574,0.22689125,101170.0,101160.0,0.1977066]
[1762299065775,0.01135,101170.0,101160.0,0.1977066]
[1762299066034,0.26305439,101180.0,101170.0,0.19768706]
[1762299066035,0.05547,101180.0,101170.0,0.19768706]
[1762299066440,0.09596,101180.0,101170.0,0.19768706]
[1762299066817,0.29362752,101180.0,101170.0,0.19768706]
[1762299067029,0.19768706,101170.0,101160.0,0.28306982]
[1762299067228,0.24952706,101170.0,101160.0,0.28306982]
[1762299067983,0.05184,101170.0,101160.0,0.28306982]
[1762299068402,0.02716,101170.0,101160.0,0.28306982]
[1762299068765,0.02716,101170.0,101160.0,0.28806982]
[1762299069275,0.01135,101170.0,101160.0,0.88333685]
[1762299069542,0.08015,101180.0,101170.0,0.19768706]
[1762299069543,0.01135,101180.0,101170.0,0.19768706]
[1762299069771,0.01135,101180.0,101170.0,0.22053706]
[1762299070204,0.24950752,101180.0,101170.0,0.20503706]
[1762299070413,0.24950752,101180.0,101170.0,0.00735]
[1762299070624,0.24950752,101180.0,101160.0,0.28806982]
[1762299070875,0.05184,101180.0,101170.0,0.19768706]
[1762299071076,0.24950752,101180.0,101170.0,0.19768706]
[1762299071962,0.24950752,101180.0,101160.0,0.28306982]
[1762299072179,0.24950752,101180.0,101170.0,0.20068706]
[1762299072511,0.05184,101180.0,101170.0,0.20068706]
[1762299072916,0.19768706,101170.0,101160.0,0.28306982]
[1762299073140,0.01168,101170.0,101160.0,0.28806982]
[1762299073316,0.01168,101170.0,101160.0,0.30429982]
[1762299073517,0.03603,101180.0,101170.0,0.19768706]
[1762299073717,0.03603,101180.0,101170.0,0.20068706]
[1762299073922,0.05146,101180.0,101170.0,0.20803706]
[1762299074156,0.02678,101180.0,101170.0,0.20803706]
[1762299074741,0.01135,101200.0,101170.0,0.22426706]
[1762299074945,0.01135,101200.0,101190.0,0.2891612]
[1762299075150,0.03499,101210.0,101200.0,0.19762845]
[1762299075327,0.01168,101210.0,101200.0,0.19762845]
[1762299076138,0.01168,101210.0,101200.0,0.19811349]
[1762299076677,0.01168,101210.0,101200.0,0.19911349]
[1762299076826,0.20928893,101210.0,101200.0,0.19911349]
[1762299077052,0.01168,101210.0,101200.0,0.19911349]
[1762299077468,1.44987679,101240.0,101200.0,0.19911349]
[1762299077469,0.20750419,101240.0,101210.0,0.19760893]
[1762299077672,0.03499,101250.0,101240.0,0.19755037]
[1762299077869,0.03499,101260.0,101250.0,0.19753086]
[1762299078164,0.01168,101260.0,101250.0,0.29024408]
[1762299078365,0.23248346,101270.0,101250.0,0.30647408]
[1762299078503,0.23625135,101260.0,101240.0,0.19755037]
[1762299078840,0.20921086,101250.0,101240.0,0.19803541]
[1762299078998,0.01168,101250.0,101240.0,0.19803541]
[1762299079843,0.01168,101250.0,101240.0,0.20103541]
[1762299080044,0.03499,101270.0,101250.0,0.19753086]
[1762299080233,0.00264642,101280.0,101270.0,0.19749185]
[1762299080438,0.22342877,101280.0,101260.0,0.10159322]
[1762299080629,0.02711,101270.0,101260.0,0.08536322]
[1762299080830,0.24791185,101270.0,101260.0,0.08536322]
[1762299081039,0.24791185,101270.0,101250.0,0.2147574]
[1762299081254,0.05042,101270.0,101260.0,0.19751135]
[1762299081679,0.00264642,101280.0,101270.0,0.19749185]
[1762299081894,0.20011877,101280.0,101270.0,0.19749185]
[1762299082109,0.19749185,101270.0,101260.0,0.001]
[1762299082307,0.24791185,101270.0,101260.0,0.19851135]
[1762299083215,0.02711,101270.0,101260.0,0.19851135]
[1762299083651,0.22460185,101270.0,101260.0,0.19851135]
[1762299083821,0.24791185,101270.0,101260.0,0.19851135]
[1762299084408,0.24791185,101270.0,101260.0,0.001]
[1762299087262,0.19751135,101260.0,101250.0,0.09271322]
[1762299087469,0.23625135,101260.0,101250.0,0.09271322]
[1762299087645,0.23625135,101260.0,101250.0,0.29024408]
[1762299087842,0.01543,101260.0,101250.0,0.29024408]
[1762299088491,0.21294135,101260.0,101250.0,0.29024408]
[1762299088849,0.01643,101260.0,101250.0,0.29024408]
[1762299089045,0.001,101260.0,101250.0,0.30647408]
[1762299089284,0.001,101260.0,101250.0,0.32611408]
[1762299089461,0.21394135,101260.0,101250.0,0.29024408]
[1762299089671,0.23725135,101260.0,101250.0,0.29024408]
[1762299089879,0.19753086,101250.0,101240.0,0.24219541]
[1762299090084,0.20921086,101250.0,101240.0,0.24219541]
[1762299090488,0.01168,101250.0,101240.0,0.25842541]
[1762299090693,0.01168,101260.0,101250.0,0.19753086]
[1762299090936,0.01168,101260.0,101250.0,0.29024408]
[1762299091159,0.01168,101260.0,101250.0,0.30647408]
[1762299091324,0.21179967,101280.0,101270.0,0.19749185]
[1762299091666,0.01432642,101280.0,101270.0,0.28900507]
[1762299092590,0.21179877,101280.0,101270.0,0.28900507]
[1762299092871,0.22767877,101280.0,101270.0,0.28900507]
[1762299093220,0.03020642,101280.0,101270.0,0.28900507]
[1762299093418,0.22967877,101280.0,101270.0,0.28900507]
[1762299093720,0.25441877,101280.0,101270.0,0.28900507]
[1762299093955,0.05694642,101280.0,101270.0,0.28900507]
[1762299094746,0.05694642,101280.0,101260.0,0.19751135]
[1762299094747,0.25441877,101280.0,101260.0,0.19751135]
[1762299094952,0.19749185,101270.0,101260.0,0.19751135]
[1762299095158,0.0115,101270.0,101260.0,0.19751135]
[1762299095394,0.0115,101270.0,101260.0,0.21406135]
[1762299095721,0.01632642,101280.0,101270.0,0.19749185]
[1762299095861,0.00464642,101280.0,101270.0,0.29940507]
[1762299096055,0.00464642,101280.0,101270.0,0.32519507]
[1762299096683,0.00264642,101280.0,101270.0,0.32519507]
[1762299097097,0.00264642,101280.0,101270.0,0.30555507]
[1762299097775,0.20011877,101280.0,101270.0,0.30555507]
[1762299098208,0.21799877,101280.0,101270.0,0.28900507]
[1762299098388,0.02052642,101280.0,101270.0,0.28900507]
[1762299098777,0.21799877,101280.0,101270.0,0.28900507]
[1762299099922,0.24273877,101280.0,101270.0,0.19749185]
[1762299100755,0.24273877,101280.0,101260.0,0.24163135]
[1762299100940,0.24273877,101280.0,101270.0,0.08536322]
[1762299101280,0.24273877,101280.0,101270.0,0.28285507]
[1762299101718,0.02052642,101280.0,101270.0,0.29860507]
[1762299101921,0.00464642,101280.0,101270.0,0.30475507]
[1762299102143,0.00464642,101280.0,101270.0,0.32439507]
[1762299102357,0.00264642,101280.0,101270.0,0.32439507]
[1762299103171,0.00464642,101280.0,101270.0,0.32439507]
[1762299103556,0.21730877,101280.0,101270.0,0.20364185]
[1762299103763,0.24177877,101280.0,101260.0,0.24163135]
[1762299103968,0.24177877,101280.0,101270.0,0.08536322]
[1762299104165,0.24177877,101280.0,101270.0,0.28285507]
[1762299105199,0.24177877,101280.0,101270.0,0.08536322]
[1762299105399,0.23977877,101280.0,101270.0,0.08536322]
[1762299106258,0.24177877,101280.0,101270.0,0.28285507]
[1762299106996,0.24177877,101280.0,101270.0,0.08536322]
[1762299107717,0.19751135,101260.0,101250.0,0.38788909]
[1762299107924,0.22465135,101260.0,101250.0,0.04404]
[1762299108064,0.24912135,101260.0,101250.0,0.04404]
[1762299108482,0.24912135,101260.0,101240.0,0.24289165]
[1762299108483,0.19753086,101250.0,101240.0,0.24289165]
[1762299108692,0.23719086,101250.0,101240.0,0.24289165]
[1762299109157,0.23719086,101250.0,101240.0,0.03546377]
[1762299109338,0.23719086,101250.0,101240.0,0.00048504]
[1762299110493,0.23719086,101250.0,101240.0,0.00148504]
[1762299110928,0.24640532,101250.0,101240.0,0.00148504]
[1762299111349,0.23719086,101250.0,101240.0,0.00148504]
[1762299111903,0.23719086,101250.0,101240.0,0.00048504]
[1762299112905,0.23819086,101250.0,101240.0,0.00048504]
[1762299113105,0.23819086,101250.0,101240.0,0.19803541]
[1762299113293,0.01619,101250.0,101240.0,0.19803541]
[1762299113494,0.23819086,101250.0,101240.0,0.00048504]
[1762299116099,0.23819086,101250.0,101240.0,0.19803541]
[1762299116393,0.01619,101250.0,101240.0,0.21378541]
[1762299117027,0.001,101250.0,101240.0,0.21378541]
[1762299117256,0.23819086,101250.0,101240.0,0.00048504]
[1762299120369,0.23819086,101250.0,101240.0,0.19803541]
[1762299120570,0.04066,101250.0,101240.0,0.19803541]
[1762299120747,0.001,101250.0,101240.0,0.23342541]
[1762299120899,0.23819086,101250.0,101240.0,0.00048504]
[1762299121295,0.04066,101250.0,101240.0,0.19803541]
[1762299121751,0.23719086,101250.0,101240.0,0.00048504]
[1762299121907,0.23719086,101250.0,101240.0,0.19803541]
[1762299122112,0.23719086,101250.0,101240.0,0.00048504]
[1762299122700,0.03966,101250.0,101240.0,0.19803541]
[1762299122910,0.01519,101250.0,101240.0,0.19803541]
[1762299123254,0.21272086,101250.0,101240.0,0.19803541]
[1762299123768,0.23719086,101250.0,101240.0,0.19803541]
[1762299123924,0.01519,101250.0,101240.0,0.19803541]
[1762299124124,0.21272086,101250.0,101240.0,0.19803541]
[1762299124331,0.03966,101250.0,101240.0,0.19803541]
[1762299124524,0.23393319,101260.0,101250.0,0.19753086]
[1762299124937,0.24912319,101260.0,101240.0,0.19803541]
[1762299125140,0.24912135,101260.0,101250.0,0.19753086]
[1762299125335,0.26335644,101270.0,101250.0,0.29864408]
[1762299125579,0.19751135,101260.0,101250.0,0.29864408]
[1762299125742,0.19851135,101260.0,101250.0,0.29864408]
[1762299125955,0.001,101260.0,101250.0,0.29864408]
[1762299126504,0.21370135,101260.0,101250.0,0.28289408]
[1762299126706,0.01619,101260.0,101250.0,0.28289408]
[1762299126994,0.01619,101260.0,101250.0,1.09911118]
[1762299126995,0.001,101260.0,101250.0,1.09911118]
[1762299127490,0.001,101260.0,101250.0,1.52408991]
[1762299127636,0.001,101260.0,101250.0,1.57687965]
[1762299128043,0.00264642,101280.0,101270.0,0.19749185]
[1762299128296,0.00264642,101280.0,101260.0,0.05019]
[1762299128297,0.19749185,101270.0,101260.0,0.05019]
[1762299128507,0.22463185,101270.0,101260.0,0.04404]
[1762299128714,0.24910185,101270.0,101250.0,0.33389935]
[1762299128928,0.24910185,101270.0,101260.0,0.19751135]
[1762299129163,0.01252003,101280.0,101270.0,0.19749185]
[1762299129340,0.00264642,101280.0,101270.0,0.19749185]
[1762299129550,0.21530877,101280.0,101270.0,0.19749185]
[1762299129927,0.01783642,101280.0,101270.0,0.28285507]
[1762299130175,0.21530877,101280.0,101270.0,0.19749185]
[1762299130378,0.19749185,101270.0,101260.0,0.19751135]
[1762299130542,0.20921185,101270.0,101260.0,0.19751135]
[1762299130739,0.22542185,101270.0,101250.0,0.30132587]
[1762299130939,0.23777135,101260.0,101250.0,0.04112873]
[1762299131284,0.21372135,101260.0,101250.0,0.28904408]
[1762299132307,0.01621,101260.0,101250.0,0.30704408]
[1762299132533,0.23404238,101280.0,101270.0,0.19749185]
[1762299132751,0.57404238,101280.0,101270.0,0.19749185]
[1762299132970,0.01885642,101280.0,101270.0,0.19749185]
[1762299133185,0.00264642,101280.0,101270.0,0.29885507]
[1762299133621,0.21632877,101280.0,101270.0,0.28285507]
[1762299134080,0.01985642,101280.0,101270.0,0.28285507]
[1762299134519,0.00364642,101280.0,101270.0,0.29885507]
[1762299134728,0.00364642,101280.0,101270.0,0.31849507]
[1762299134949,0.00364642,101280.0,101270.0,0.3534738]
[1762299135168,0.00364642,101280.0,101270.0,0.93332146]
[1762299135389,0.24137877,101280.0,101270.0,0.19749185]
[1762299135606,0.24137877,101280.0,101260.0,0.32931982]
[1762299135830,0.23688877,101280.0,101270.0,0.19749185]
[1762299136076,0.23688877,101280.0,101270.0,0.08536322]
[1762299136290,0.25309877,101280.0,101270.0,0.28285507]
[1762299136741,0.19749185,101270.0,101260.0,0.27652834]
[1762299136953,0.21370185,101270.0,101260.0,0.27652834]
[1762299137629,0.23775185,101270.0,101260.0,0.07901873]
[1762299137834,0.23775185,101270.0,101260.0,0.04404]
[1762299138036,0.19751135,101260.0,101250.0,0.18915823]
[1762299138245,0.19749185,101270.0,101260.0,0.002]
[1762299138449,0.19751135,101260.0,101250.0,0.33389935]
[1762299138578,0.21372135,101260.0,101250.0,0.33389935]
[1762299138804,0.19753086,101250.0,101240.0,0.29568139]
[1762299139008,0.24951086,101250.0,101240.0,0.29568139]
[1762299139236,0.24951086,101250.0,101240.0,0.24289165]
[1762299140452,0.28204374,101250.0,101240.0,0.24289165]
[1762299140869,0.06046288,101250.0,101240.0,0.24489165]
[1762299141023,0.02793,101250.0,101240.0,0.24489165]
[1762299141222,0.02793,101250.0,101240.0,0.24289165]
[1762299141660,0.22156135,101260.0,101240.0,0.24289165]
[1762299141661,0.19751135,101260.0,101240.0,0.27853165]
[1762299141862,0.19751135,101260.0,101250.0,0.28904408]
[1762299142266,0.23777135,101260.0,101250.0,0.28289408]
[1762299142579,0.23777135,101260.0,101250.0,0.08536322]
[1762299142782,0.01621,101260.0,101250.0,0.28904408]
[1762299143189,0.24313644,101270.0,101250.0,0.28904408]
[1762299143190,0.24313959,101270.0,101260.0,0.19751135]
[1762299143529,0.05198,101270.0,101260.0,0.19751135]
[1762299143739,0.01172,101270.0,101260.0,0.19751135]
[1762299144197,0.20921185,101270.0,101260.0,0.21351135]
[1762299144359,0.01372,101270.0,101260.0,0.21351135]
[1762299144703,0.02793,101270.0,101260.0,0.19751135]
[1762299144878,0.22642185,101270.0,101260.0,0.19751135]
[1762299145119,0.19751135,101260.0,101250.0,0.08776847]
[1762299145481,0.23777135,101260.0,101250.0,0.19753086]
[1762299146264,0.81761901,101260.0,101240.0,0.28580388]
[1762299146469,0.23779086,101250.0,101240.0,0.28580388]
[1762299146651,0.23779086,101250.0,101240.0,0.23301414]
[1762299147691,0.23779086,101250.0,101240.0,0.23501414]
[1762299147920,0.23779086,101250.0,101240.0,0.23301414]
[1762299148265,0.23779086,101250.0,101240.0,0.25278414]
[1762299148467,0.23779086,101250.0,101240.0,0.23301414]
[1762299149809,0.22156135,101260.0,101250.0,0.19753086]
[1762299150207,0.22156135,101260.0,101250.0,0.28289408]
[1762299150208,0.04026,101260.0,101250.0,0.28289408]
[1762299150410,0.21372135,101260.0,101250.0,0.28904408]
[1762299150646,0.23777135,101260.0,101250.0,0.00615]
[1762299150762,0.21372135,101260.0,101250.0,0.28904408]
[1762299150962,0.01621,101260.0,101250.0,0.28904408]
[1762299151195,0.21472135,101260.0,101250.0,0.28904408]
[1762299151383,0.23877135,101260.0,101250.0,0.09151322]
[1762299151791,0.23877135,101260.0,101250.0,0.28904408]
[1762299152192,0.001,101260.0,101250.0,0.30501408]
[1762299152393,0.001,101260.0,101250.0,0.33999281]
[1762299153850,0.23791135,101260.0,101250.0,0.12649195]
[1762299154045,0.23791135,101260.0,101250.0,0.09151322]
[1762299154216,0.23791135,101260.0,101250.0,0.08536322]
[1762299154612,0.01669,101260.0,101250.0,0.28904408]
[1762299154816,0.001,101260.0,101250.0,0.30501408]
[1762299155010,0.001,101260.0,101250.0,0.33999281]
[1762299155432,0.001,101260.0,101250.0,0.35963281]
[1762299157260,0.001,101260.0,101250.0,0.41242255]
[1762299157457,0.001,101260.0,101250.0,0.45642255]
[1762299157673,0.001,101260.0,101250.0,0.3164406]
[1762299157873,0.23791135,101260.0,101250.0,0.07949277]
[1762299158348,0.19753086,101250.0,101240.0,0.25082515]
[1762299158546,0.23693086,101250.0,101240.0,0.0887748]
[1762299158971,0.23693086,101250.0,101240.0,0.03598506]
[1762299159411,0.23693086,101250.0,101240.0,0.23353543]
[1762299160042,0.23693086,101250.0,101240.0,0.03598506]
[1762299160668,0.23693086,101250.0,101240.0,0.23353543]
[1762299161488,0.21322086,101250.0,101240.0,0.23353543]
[1762299161911,0.23796086,101250.0,101240.0,0.23353543]
[1762299162155,0.23796086,101250.0,101240.0,0.03598506]
[1762299162560,0.23796086,101250.0,101240.0,0.00048504]
[1762299169800,0.22225135,101260.0,101250.0,0.19753086]
[1762299170007,0.56225135,101260.0,101250.0,0.28289408]
[1762299170254,0.57832135,101260.0,101250.0,0.28289408]
[1762299170790,0.23832135,101260.0,101250.0,0.28289408]
[1762299171191,0.24032135,101260.0,101240.0,0.23353543]
[1762299171401,0.01607,101250.0,101240.0,0.23353543]
[1762299171593,0.22425135,101260.0,101250.0,0.19753086]
[1762299172004,0.24032135,101260.0,101250.0,0.19753086]
[1762299173345,0.24032135,101260.0,101240.0,0.31889865]
[1762299174294,0.24032135,101260.0,101250.0,0.19753086]
[1762299174509,0.23832135,101260.0,101250.0,0.19753086]
[1762299174715,0.04381,101260.0,101250.0,0.19753086]
[1762299174927,0.04381,101260.0,101250.0,0.21868086]
[1762299174928,0.01907,101260.0,101250.0,0.21868086]
[1762299175139,0.003,101260.0,101250.0,0.25418088]
[1762299175565,0.01907,101260.0,101250.0,0.23918088]
[1762299176198,0.23832135,101260.0,101250.0,0.23918088]
[1762299176434,0.23832135,101260.0,101250.0,0.03550002]
[1762299176633,0.19753086,101250.0,101240.0,0.37168839]
[1762299176825,0.23834086,101250.0,101240.0,0.31889865]
[1762299178193,0.23834086,101250.0,101240.0,0.37168839]
[1762299178435,0.04081,101250.0,101240.0,0.31889865]
[1762299178789,0.23834086,101250.0,101240.0,0.31889865]
[1762299179369,0.01607,101250.0,101240.0,0.31889865]
[1762299179597,0.01707,101250.0,101240.0,0.31889865]
[1762299180075,0.01707,101250.0,101240.0,0.37168839]
[1762299180434,0.001,101250.0,101240.0,0.38668839]
[1762299181081,0.21460086,101250.0,101240.0,0.38668839]
[1762299181268,0.01707,101250.0,101240.0,0.38668839]
[1762299181469,0.21460086,101250.0,101240.0,0.38668839]
[1762299181673,0.21460086,101250.0,101240.0,0.28632517]
[1762299181942,0.23934086,101250.0,101240.0,0.0887748]
[1762299182113,0.81918852,101250.0,101240.0,0.00048504]
[1762299182507,3.1953708,101250.0,101240.0,0.00048504]
[1762299182812,3.22604293,101250.0,101240.0,0.00048504]
[1762299183015,2.71508011,101250.0,101240.0,0.00048504]
[1762299183223,3.29492777,101250.0,101240.0,0.00048504]
[1762299183433,3.29392777,101250.0,101240.0,0.00048504]
[1762299183628,3.29592777,101250.0,101240.0,0.00048504]
[1762299184070,3.29392777,101250.0,101240.0,0.00048504]
[1762299184315,3.3285999,101250.0,101240.0,0.00048504]
[1762299184513,0.1975894,101220.0,101210.0,0.08536322]
[1762299184721,0.2088294,101220.0,101210.0,0.08584871]
[1762299184923,0.2496394,101220.0,101210.0,0.08584871]
[1762299185335,0.95928627,101220.0,101210.0,0.00048549]
[1762299185564,0.8597293,101220.0,101210.0,0.00048549]
[1762299185772,0.2496394,101220.0,101210.0,0.00048549]
[1762299185976,0.2496394,101220.0,101210.0,0.28345764]
[1762299186197,0.2496394,101220.0,101210.0,0.28445764]
[1762299186409,0.2496394,101220.0,101210.0,0.28345764]
[1762299186824,0.2506394,101220.0,101210.0,0.28345764]
[1762299187022,0.05305,101220.0,101210.0,0.28345764]
[1762299187232,0.04369538,101220.0,101210.0,0.28345764]
[1762299187474,0.01895538,101220.0,101210.0,0.29080764]
[1762299187681,0.001,101220.0,101210.0,0.30580764]
[1762299188900,0.001,101220.0,101210.0,0.33021764]
[1762299190283,0.001,101220.0,101210.0,0.38300738]
[1762299191204,0.001,101220.0,101210.0,0.35859738]
[1762299191448,0.001,101220.0,101210.0,0.30580764]
[1762299191993,0.001,101220.0,101210.0,0.96215504]
[1762299192206,0.001,101220.0,101210.0,1.01215504]
[1762299192829,0.001,101220.0,101210.0,0.9593653]
[1762299193043,0.01187,101250.0,101240.0,0.19755037]
[1762299193245,0.03618,101250.0,101240.0,0.19755037]
[1762299193539,0.05216,101250.0,101240.0,0.19755037]
[1762299193717,0.24969086,101250.0,101240.0,0.19755037]
[1762299196005,0.24969086,101250.0,101230.0,0.28908311]
[1762299196209,0.01598,101240.0,101230.0,0.28908311]
[1762299197775,0.01568727,101240.0,101230.0,0.28908311]
[1762299198650,0.19756989,101230.0,101220.0,0.09719748]
[1762299198858,0.1975894,101220.0,101210.0,0.28345199]
[1762299199060,0.2378794,101220.0,101210.0,0.28345764]
[1762299199281,0.2378794,101220.0,101210.0,0.08584871]
[1762299199438,0.2378794,101220.0,101210.0,0.28345764]
[1762299200507,0.2378794,101220.0,101210.0,0.28845764]
[1762299200719,0.04029,101220.0,101210.0,0.28845764]
[1762299201132,0.04029,101220.0,101210.0,0.29580764]
[1762299201363,0.01598,101220.0,101210.0,0.29580764]
[1762299203050,0.2135694,101220.0,101210.0,0.29580764]
[1762299203261,0.2378794,101220.0,101210.0,0.09819871]
[1762299203468,0.2378794,101220.0,101210.0,0.00548549]
[1762299203833,0.2378794,101220.0,101210.0,0.09084871]
[1762299204440,0.2378794,101220.0,101210.0,0.00548549]
[1762299204654,0.2378794,101220.0,101210.0,0.08584871]
[1762299205029,0.2378794,101220.0,101210.0,0.08884871]
[1762299205789,0.2378794,101220.0,101210.0,0.28645764]
[1762299207891,0.04029,101220.0,101210.0,0.28645764]
[1762299208150,0.23375135,101230.0,101220.0,0.1975894]
[1762299208551,0.24973135,101230.0,101220.0,0.1975894]
[1762299208727,0.1975894,101220.0,101210.0,0.29380764]
[1762299208909,0.2378794,101220.0,101210.0,0.29380764]
[1762299209110,0.2378794,101220.0,101210.0,0.28645764]
[1762299209319,0.2378794,101220.0,101210.0,0.28345764]
[1762299209493,0.04029,101220.0,101210.0,0.28345764]
[1762299209699,0.54742788,101240.0,101230.0,0.19756989]
[1762299209901,0.2875874,101250.0,101230.0,0.20400989]
[1762299210129,0.2875874,101250.0,101240.0,0.19755037]
[1762299210343,0.27771086,101250.0,101240.0,0.19755037]
[1762299210564,0.19755037,101240.0,101230.0,0.28293311]
[1762299210779,0.01598,101240.0,101230.0,0.28937311]
[1762299210991,0.27771086,101250.0,101230.0,0.30489311]
[1762299211204,0.19755037,101240.0,101230.0,0.30489311]
[1762299211419,0.21353037,101240.0,101230.0,0.28937311]
[1762299211619,0.23784037,101240.0,101220.0,0.30466635]
[1762299211856,0.05216,101230.0,101220.0,0.25146887]
[1762299212457,0.24972989,101230.0,101220.0,0.044]
[1762299213472,0.1975894,101220.0,101210.0,0.00048549]
[1762299213678,0.04074,101220.0,101210.0,0.28345764]
[1762299213911,0.2383294,101220.0,101210.0,0.19809442]
[1762299214476,0.2383294,101220.0,101210.0,0.28345764]
[1762299214967,0.2383294,101220.0,101210.0,0.28645764]
[1762299215174,0.01619,101220.0,101210.0,0.29380764]
[1762299216939,0.04074,101220.0,101210.0,0.29380764]
[1762299217893,0.2383294,101220.0,101210.0,0.29380764]
[1762299218013,0.2383294,101220.0,101210.0,0.28645764]
[1762299218214,0.04074,101220.0,101210.0,0.28645764]
[1762299218420,0.01619,101220.0,101210.0,0.29380764]
[1762299218865,0.2137794,101220.0,101210.0,0.29380764]
[1762299219085,0.2383294,101220.0,101210.0,0.29380764]
[1762299219778,0.04074,101220.0,101210.0,0.29380764]
[1762299220543,0.20944001,101230.0,101220.0,0.1975894]
[1762299220753,0.23256001,101230.0,101220.0,0.1975894]
[1762299220957,0.1975894,101220.0,101210.0,0.29380764]
[1762299221161,0.2362594,101220.0,101210.0,0.28645764]
[1762299221481,0.2362594,101220.0,101210.0,0.08884871]
[1762299221681,0.2362594,101220.0,101210.0,0.28645764]
[1762299223629,0.03867,101220.0,101210.0,0.28645764]
[1762299225379,0.01555,101220.0,101210.0,0.29380764]
[1762299225605,0.2131394,101220.0,101210.0,0.29380764]
[1762299226417,0.2362594,101220.0,101210.0,0.29380764]
[1762299227027,0.2362594,101220.0,101210.0,0.28645764]
[1762299227540,0.2131394,101220.0,101210.0,0.29380764]
[1762299227762,0.23350086,101220.0,101210.0,0.28645764]
[1762299228149,0.21038086,101220.0,101210.0,0.28921764]
[1762299228356,0.23350086,101220.0,101210.0,0.28921764]
[1762299228519,0.23350086,101220.0,101210.0,0.08884871]
[1762299228947,0.23350086,101220.0,101210.0,0.00348549]
[1762299229308,0.23350086,101220.0,101210.0,0.08884871]
[1762299229658,0.23350086,101220.0,101210.0,0.28645764]
[1762299229876,3.05758891,101220.0,101210.0,0.00348549]
[1762299230078,0.53762845,101200.0,101190.0,0.231372]
[1762299230293,1.36142241,101200.0,101190.0,0.23185797]
[1762299230495,1.48331467,101200.0,101190.0,0.23185797]
[1762299230917,1.59007849,101200.0,101190.0,0.23185797]
[1762299232051,1.59207849,101200.0,101190.0,0.23185797]
[1762299238834,1.49252152,101200.0,101190.0,0.23185797]
[1762299238985,0.64394513,101200.0,101190.0,0.23185797]
[1762299242285,1.48967186,101200.0,101190.0,0.23185797]
[1762299243613,3.48967186,101200.0,101190.0,0.23185797]
[1762299244240,0.60358075,101190.0,101180.0,0.00022587]
[1762299244440,1.43374471,101190.0,101180.0,0.00070779]
[1762299245329,0.24801798,101190.0,101180.0,0.19837531]
[1762299245570,0.05037,101190.0,101180.0,0.19837531]
[1762299246508,0.24801798,101190.0,101180.0,0.19837531]
[1762299246717,0.24901798,101190.0,101180.0,0.19837531]
[1762299247328,0.05137,101190.0,101180.0,0.19837531]
[1762299247544,0.001,101190.0,101180.0,1.14727249]
[1762299247785,0.001,101190.0,101180.0,1.19727249]
[1762299248963,0.03499,101230.0,101220.0,0.1975894]
[1762299249343,0.05054,101230.0,101220.0,0.1975894]
[1762299250180,0.05154,101230.0,101220.0,0.19807132]
[1762299250958,0.02842,101230.0,101220.0,0.19807132]
[1762299251530,0.22598989,101230.0,101220.0,0.19807132]
[1762299251731,0.25016989,101230.0,101220.0,0.00048192]
[1762299252773,0.25016989,101230.0,101220.0,0.19807132]
[1762299253373,0.25016989,101230.0,101220.0,0.00048192]
[1762299253743,0.25016989,101230.0,101220.0,0.19807132]
[1762299254546,0.25016989,101230.0,101220.0,0.00048192]
[1762299255827,1.02996385,101230.0,101220.0,0.00048192]
[1762299256033,1.06018611,101230.0,101220.0,0.00048192]
[1762299256226,1.09636839,101230.0,101220.0,0.00048192]
[1762299256433,1.2810778,101230.0,101220.0,0.00048192]
[1762299258131,3.2810778,101230.0,101220.0,0.00048192]
[1762299258554,3.38063477,101230.0,101220.0,0.00048192]